[Event "Serbian League Women 2024"]
[Site "Bajina Basta"]
[Date "2024.09.29"]
[Round "3.1"]
[White "Gaponenko, Inna"]
[Black "Savitha Shri B"]
[Result "1-0"]
[ECO "B22"]
[WhiteElo "2324"]
[BlackElo "2348"]
[Annotator "RC"]
[PlyCount "109"]
[EventDate "2024.09.26"]
[EventType "team-tourn"]
[EventCountry "SRB"]
[SourceTitle "playchess.com"]
[Source "ChessBase"]
[SourceQuality "1"]
[TimeControl "40/5400+30:1800+30"]

1. e4 {[%emt 0:00:04]} c5 {[%emt 0:00:07]} 2. c3 {[%emt 0:00:04]} Nf6 {[%emt 0:00:04]} 3. e5 {[%emt 0:00:05]} Nd5 {[%emt 0:00:04]} 4. Nf3 {[%emt 0:00:06]} Nc6 {[%emt 0:00:55]} 5. d4 {[%emt 0:00:08]} cxd4 {[%emt 0:00:25]} 6. cxd4 {[%emt 0:00:04]} d6 {[%emt 0:00:11]} 7. Bc4 {[%emt 0:00:06]} Nb6 {[%emt 0:00:07]} 8. Bb5 {[%emt 0:00:03]} Bd7 {[%emt 0:00:16]} 9. Nc3 {[%emt 0:01:09]} dxe5 {[%emt 0:00:10]} 10. Nxe5 {[%emt 0:00:54]} Nxe5 {[%emt 0:04:17]} 11. dxe5 {[%emt 0:00:05]} Bxb5 {[%emt 0:06:21]} 12. Nxb5 {[%emt 0:00:06]} Qxd1+ {[%emt 0:02:22]} 13. Kxd1 {[%emt 0:00:06]} O-O-O+ {[%emt 0:14:10]} 14. Ke2 {[%emt 0:00:24]} Rd5 {[%emt 0:01:33]} 15. a4 {[%emt 0:00:58]} a6 {[%emt 0:08:10]} 16. Be3 {[%emt 0:18:56]} Rxe5 {[%emt 0:04:55]} 17. Rac1+ {[%emt 0:09:20]} Kd8 {[%emt 0:06:35]} 18. Rhd1+ {[%emt 0:43:49]} Nd5 {[%emt 0:00:23]} 19. Nc3 {[%emt 0:00:06]} e6 {[%emt 0:01:54]} 20. Nxd5 {[%emt 0:00:04]} exd5 {[%emt 0:04:47]} 21. f4 {[%emt 0:00:29]} Rh5 {[%emt 0:05:54]} 22. Bb6+ {[%emt 0:01:17]} Kd7 {[%emt 0:03:11]} 23. Rc7+ {[%emt 0:00:52]} Ke6 {[%emt 0:02:31]} 24. Kf3 {[%emt 0:11:52]} Bb4 {[%emt 0:05:37]} 25. Rxb7 {[%emt 0:00:50]} Rc8 {[%emt 0:01:28]} 26. Bd4 {[%emt 0:05:58]} a5 {[%emt 0:00:05]} 27. h3 {[%emt 0:02:31]} g6 {[%emt 0:04:59]} 28. Rd3 {[%emt 0:00:08]} Rc4 {[%emt 0:04:19]} 29. b3 {[%emt 0:01:27]} Rc1 {[%emt 0:00:57]} 30. Re3+ {[%emt 0:00:49]} Kd6 {[%emt 0:00:01]} 31. Be5+ {[%emt 0:02:22]} Rxe5 {[%emt 0:00:28]} 32. Rxe5 {[%emt 0:00:21]} Rf1+ {[%emt 0:08:25]} 33. Kg3 {[%emt 0:00:12]} Be1+ {[%emt 0:03:44]} 34. Kh2 {[%emt 0:00:09]} Bd2 {[%emt 0:01:57]} 35. g3 {[%emt 0:00:49]} Bc3 {[%emt 0:06:38]} 36. Re8 {[%emt 0:00:34]} Rf2+ {[%emt 0:00:00]} 37. Kh1 {[%emt 0:00:04]} d4 {[%emt 0:00:00]} 38. Rxf7 {[%emt 0:01:13]} d3 {[%emt 0:00:00]} 39. Rd8+ {[%emt 0:00:20]} Ke6 {[%emt 0:00:00]} 40. Rxh7 {[%emt 0:00:54]} d2 {[%emt 0:00:00]} 41. Rhd7 {[%emt 0:30:38]} Bb4 {[%emt 0:09:28]} 42. Rd4 {[%emt 0:00:00]} Kf6 {[%emt 0:08:07]} 43. R8d5 {[%emt 0:00:00]} Re2 {[%emt 0:01:56]} 44. Rd3 {[%emt 0:00:00]} Rf2 {[%emt 0:01:28]} 45. Kg1 {[%emt 0:00:00]} Re2 {[%emt 0:00:13]} 46. Kf1 {[%emt 0:00:00]} Rh2 {[%emt 0:00:50]} 47. g4 {[%emt 0:00:00]} Kg7 {[%emt 0:02:13]} 48. Kg1 {[%emt 0:00:00]} Re2 {[%emt 0:00:04]} 49. h4 {[%emt 0:00:00]} Kg8 {[%emt 0:05:42]} 50. Kf1 {[%emt 0:00:06]} Rh2 {[%emt 0:00:04]} 51. h5 {[%emt 0:00:17]} Kg7 {[%emt 0:02:03]} 52. hxg6 {[%emt 0:00:12]} Rh4 {[%emt 0:00:37]} 53. f5 {[%emt 0:02:09]} Rxg4 {[%emt 0:00:05]} 54. Rxd2 {[%emt 0:00:10]} Bxd2 {[%emt 0:00:51]} 55. Rxd2 {[%emt 0:00:03]} 1-0

[Event "Serbian League Women 2024"]
[Site "Bajina Basta"]
[Date "2024.09.29"]
[Round "3.2"]
[White "Toncheva, Nadya"]
[Black "Doluhanova, Evgeniya"]
[Result "0-1"]
[ECO "C67"]
[WhiteElo "2301"]
[BlackElo "2304"]
[Annotator "RC"]
[PlyCount "118"]
[EventDate "2024.09.26"]
[EventType "team-tourn"]
[EventCountry "SRB"]
[SourceTitle "playchess.com"]
[Source "ChessBase"]
[SourceQuality "1"]
[TimeControl "40/5400+30:1800+30"]

1. e4 {[%emt 0:00:03]} e5 {[%emt 0:01:14]} 2. Nf3 {[%emt 0:00:02]} Nc6 {[%emt 0:00:06]} 3. Bb5 {[%emt 0:00:05]} Nf6 {[%emt 0:00:21]} 4. O-O {[%emt 0:00:05]} Nxe4 {[%emt 0:00:04]} 5. d4 {[%emt 0:00:04]} Nd6 {[%emt 0:00:13]} 6. dxe5 {[%emt 0:00:04]} Nxb5 {[%emt 0:00:21]} 7. a4 {[%emt 0:00:03]} Nbd4 {[%emt 0:00:25]} 8. Nxd4 {[%emt 0:00:05]} Nxd4 {[%emt 0:01:05]} 9. Qxd4 {[%emt 0:00:06]} d5 {[%emt 0:01:26]} 10. Nc3 {[%emt 0:00:05]} c6 {[%emt 0:00:54]} 11. a5 {[%emt 0:00:05]} Be7 {[%emt 0:08:05]} 12. b4 {[%emt 0:00:06]} O-O {[%emt 0:06:00]} 13. Re1 {[%emt 0:00:39]} Be6 {[%emt 0:03:26]} 14. Bf4 {[%emt 0:02:38]} b6 {[%emt 0:05:58]} 15. b5 {[%emt 0:10:36]} Qc7 {[%emt 0:03:08]} 16. Red1 {[%emt 0:07:00]} Rfd8 {[%emt 0:06:03]} 17. h3 {[%emt 0:06:08]} bxa5 {[%emt 0:17:25]} 18. bxc6 {[%emt 0:03:10]} Bb4 {[%emt 0:01:10]} 19. Ne2 {[%emt 0:04:38]} Qxc6 {[%emt 0:01:04]} 20. c3 {[%emt 0:00:23]} Bc5 {[%emt 0:00:33]} 21. Qd3 {[%emt 0:00:10]} Bb6 {[%emt 0:18:56]} 22. Nd4 {[%emt 0:03:23]} Qe8 {[%emt 0:00:44]} 23. Bg5 {[%emt 0:03:47]} Rdc8 {[%emt 0:02:25]} 24. f4 {[%emt 0:01:56]} Qd7 {[%emt 0:03:28]} 25. Kh2 {[%emt 0:00:40]} Bxd4 {[%emt 0:01:28]} 26. cxd4 {[%emt 0:00:30]} h6 {[%emt 0:01:55]} 27. Bh4 {[%emt 0:00:07]} Bf5 {[%emt 0:00:43]} 28. Qg3 {[%emt 0:06:39]} a4 {[%emt 0:00:32]} 29. Rd2 {[%emt 0:03:20]} Rab8 {[%emt 0:00:22]} 30. Re1 {[%emt 0:03:52]} Rb3 {[%emt 0:02:34]} 31. Re3 {[%emt 0:00:06]} Rcb8 {[%emt 0:03:09]} 32. Rde2 {[%emt 0:04:34]} Qe6 {[%emt 0:01:31]} 33. Qe1 {[%emt 0:06:47]} Rxe3 {[%emt 0:04:28]} 34. Rxe3 {[%emt 0:00:06]} Rb3 {[%emt 0:00:27]} 35. Qd2 {[%emt 0:09:40]} Be4 {[%emt 0:03:48]} 36. Rxe4 {[%emt 0:15:50]} dxe4 {[%emt 0:00:06]} 37. d5 {[%emt 0:00:03]} Qd7 {[%emt 0:00:23]} 38. d6 {[%emt 0:00:05]} Rd3 {[%emt 0:01:07]} 39. Qb4 {[%emt 0:00:52]} Qf5 {[%emt 0:00:27]} 40. Bg3 {[%emt 0:00:54]} g5 {[%emt 0:00:42]} 41. fxg5 {[%emt 0:33:02]} hxg5 {[%emt 0:30:33]} 42. e6 {[%emt 0:01:40]} Qxe6 {[%emt 0:00:00]} 43. Qxa4 {[%emt 0:00:00]} Rxg3 {[%emt 0:00:00]} 44. Kxg3 {[%emt 0:00:00]} Qxd6+ {[%emt 0:00:00]} 45. Kf2 {[%emt 0:00:00]} Qd2+ {[%emt 0:00:00]} 46. Kf1 {[%emt 0:00:00]} Qd3+ {[%emt 0:00:00]} 47. Kg1 {[%emt 0:00:00]} Qb1+ {[%emt 0:00:00]} 48. Kf2 {[%emt 0:00:00]} Qb6+ {[%emt 0:00:00]} 49. Ke2 {[%emt 0:00:00]} a6 {[%emt 0:00:00]} 50. Qe8+ {[%emt 0:00:00]} Kg7 {[%emt 0:06:41]} 51. Qe5+ {[%emt 0:00:00]} Qf6 {[%emt 0:00:00]} 52. Qd5 {[%emt 0:00:00]} Qb2+ {[%emt 0:00:00]} 53. Ke3 {[%emt 0:00:00]} Qb6+ {[%emt 0:00:00]} 54. Kd2 {[%emt 0:00:00]} e3+ {[%emt 0:00:00]} 55. Kc2 {[%emt 0:00:00]} Qg6+ {[%emt 0:00:00]} 56. Kc1 {[%emt 0:00:00]} Qf6 {[%emt 0:00:00]} 57. Kd1 {[%emt 0:00:00]} e2+ {[%emt 0:00:00]} 58. Kd2 {[%emt 0:00:00]} e1=Q+ {[%emt 0:00:00]} 59. Kxe1 {[%emt 0:00:00]} Qe6+ {[%emt 0:00:00]} 0-1

[Event "Serbian League Women 2024"]
[Site "Bajina Basta"]
[Date "2024.09.29"]
[Round "3.3"]
[White "Petronic, Sanja"]
[Black "Grozdanovic, Anastasia"]
[Result "0-1"]
[ECO "B23"]
[WhiteElo "2081"]
[BlackElo "2041"]
[Annotator "NA RC"]
[PlyCount "56"]
[EventDate "2024.09.26"]
[EventType "team-tourn"]
[EventCountry "SRB"]
[SourceTitle "playchess.com"]
[Source "ChessBase"]
[SourceQuality "1"]
[TimeControl "40/5400+30:1800+30"]

1. e4 {[%emt 0:00:17]} c5 {[%emt 0:00:18]} 2. Nc3 {[%emt 0:00:09]} e6 {[%emt 0:00:04]} 3. g3 {[%emt 0:02:03]} d5 {[%emt 0:00:10]} 4. d3 {[%emt 0:00:04]} d4 {[%emt 0:05:11]} 5. Nce2 {[%emt 0:00:08]} Nc6 {[%emt 0:00:29]} 6. f4 {[%emt 0:01:05]} h5 {[%emt 0:04:17]} 7. Nf3 {[%emt 0:01:42]} Be7 {[%emt 0:01:04]} 8. Bg2 {[%emt 0:04:43]} b6 {[%emt 0:09:24]} 9. c3 {[%emt 0:01:29]} dxc3 {[%emt 0:05:08]} 10. bxc3 {[%emt 0:00:42]} h4 {[%emt 0:04:55]} 11. Nxh4 {[%emt 0:12:29]} Bxh4 {[%emt 0:00:37]} 12. gxh4 {[%emt 0:01:53]} Qxh4+ {[%emt 0:03:04]} 13. Ng3 {[%emt 0:10:01]} e5 {[%emt 0:01:05]} 14. f5 {[%emt 0:02:24]} Nf6 {[%emt 0:03:35]} 15. Be3 {[%emt 0:10:46]} Nh5 {[%emt 0:15:56]} 16. Qa4 {[%emt 0:04:33]} Bd7 {[%emt 0:02:55]} 17. Qc2 {[%emt 0:01:04]} Nf4 {[%emt 0:03:48]} 18. Bf3 {[%emt 0:00:10]} Rc8 {[%emt 0:02:19]} 19. Qd2 {[%emt 0:07:59]} Rd8 {[%emt 0:04:57]} 20. O-O-O {[%emt 0:02:56]} Na5 {[%emt 0:06:16]} 21. Bxf4 {[%emt 0:03:31]} exf4 {[%emt 0:04:44]} 22. Ne2 {[%emt 0:00:16]} Ba4 {[%emt 0:00:33]} 23. Rdg1 {[%emt 0:07:19]} Nc4 {[%emt 0:00:49]} 24. Qxf4 {[%emt 0:00:13]} Rxd3 {[%emt 0:00:28]} 25. Qb8+ {[%emt 0:00:35]} Rd8 {[%emt 0:01:32]} 26. Qf4 {[%emt 0:04:01]} Qe7 {[%emt 0:06:33]} 27. e5 {[%emt 0:05:29]} Qd7 {[%emt 0:06:49]} 28. Kb1 {[%emt 0:12:48]} Qb5+ {[%emt 0:00:40]} 0-1

[Event "Serbian League Women 2024"]
[Site "Bajina Basta"]
[Date "2024.09.29"]
[Round "3.4"]
[White "Mihajlovic, Milena"]
[Black "Urosevic, Marija"]
[Result "1-0"]
[ECO "E11"]
[WhiteElo "2065"]
[BlackElo "2060"]
[Annotator "NA RC"]
[PlyCount "87"]
[EventDate "2024.09.26"]
[EventType "team-tourn"]
[EventCountry "SRB"]
[SourceTitle "playchess.com"]
[Source "ChessBase"]
[SourceQuality "1"]
[TimeControl "40/5400+30:1800+30"]

1. d4 {[%emt 0:00:16]} Nf6 {[%emt 0:00:07]} 2. c4 {[%emt 0:00:12]} e6 {[%emt 0:00:22]} 3. Nf3 {[%emt 0:00:07]} Bb4+ {[%emt 0:06:00]} 4. Bd2 {[%emt 0:01:10]} Bxd2+ {[%emt 0:01:03]} 5. Qxd2 {[%emt 0:08:06]} Ne4 {[%emt 0:04:44]} 6. Qc2 {[%emt 0:00:57]} f5 {[%emt 0:00:55]} 7. Nc3 {[%emt 0:09:13]} Nxc3 {[%emt 0:01:51]} 8. bxc3 {[%emt 0:00:36]} O-O {[%emt 0:01:43]} 9. e4 {[%emt 0:05:30]} d6 {[%emt 0:12:39]} 10. Bd3 {[%emt 0:03:20]} h6 {[%emt 0:07:49]} 11. O-O {[%emt 0:01:34]} Nc6 {[%emt 0:03:27]} 12. Rfe1 {[%emt 0:11:42]} Ne7 {[%emt 0:06:24]} 13. Rad1 {[%emt 0:08:21]} Bd7 {[%emt 0:07:51]} 14. exf5 {[%emt 0:11:19]} Nxf5 {[%emt 0:02:55]} 15. c5 {[%emt 0:05:01]} Nh4 {[%emt 0:07:23]} 16. Nxh4 {[%emt 0:02:09]} Qxh4 {[%emt 0:00:02]} 17. Re4 {[%emt 0:02:41]} Qg5 {[%emt 0:01:27]} 18. Re3 {[%emt 0:05:53]} Bc6 {[%emt 0:07:03]} 19. Rg3 {[%emt 0:00:25]} Qf4 {[%emt 0:00:16]} 20. cxd6 {[%emt 0:04:41]} cxd6 {[%emt 0:00:39]} 21. Re1 {[%emt 0:01:22]} Rae8 {[%emt 0:03:54]} 22. h3 {[%emt 0:00:53]} Kh8 {[%emt 0:04:53]} 23. Rg4 {[%emt 0:00:23]} Qf6 {[%emt 0:00:16]} 24. Rg6 {[%emt 0:00:22]} Qf4 {[%emt 0:07:27]} 25. Rgxe6 {[%emt 0:01:39]} Rxe6 {[%emt 0:02:16]} 26. Rxe6 {[%emt 0:00:05]} Qg5 {[%emt 0:05:22]} 27. Rg6 {[%emt 0:00:16]} Qe7 {[%emt 0:01:41]} 28. Qd2 {[%emt 0:01:29]} Be8 {[%emt 0:02:13]} 29. Rg3 {[%emt 0:01:57]} Bh5 {[%emt 0:00:55]} 30. Re3 {[%emt 0:01:56]} Qg5 {[%emt 0:00:31]} 31. Qe1 {[%emt 0:00:41]} d5 {[%emt 0:00:26]} 32. Re5 {[%emt 0:00:47]} Qh4 {[%emt 0:00:38]} 33. Rxd5 {[%emt 0:00:35]} Bf7 {[%emt 0:00:27]} 34. Rd7 {[%emt 0:04:19]} Bxa2 {[%emt 0:00:45]} 35. Rxb7 {[%emt 0:00:09]} Bd5 {[%emt 0:00:23]} 36. Rxa7 {[%emt 0:01:26]} Qg5 {[%emt 0:00:27]} 37. Bf1 {[%emt 0:00:15]} Qg6 {[%emt 0:00:33]} 38. c4 {[%emt 0:02:55]} Re8 {[%emt 0:00:51]} 39. Re7 {[%emt 0:01:32]} Rxe7 {[%emt 0:00:34]} 40. Qxe7 {[%emt 0:00:04]} Be6 {[%emt 0:00:34]} 41. h4 {[%emt 0:31:23]} Bf5 {[%emt 0:01:30]} 42. d5 {[%emt 0:00:00]} Qg4 {[%emt 0:07:50]} 43. d6 {[%emt 0:00:00]} Qd4 {[%emt 0:02:33]} 44. Qf8+ {[%emt 0:00:00]} 1-0

[Event "Serbian League Women 2024"]
[Site "Bajina Basta"]
[Date "2024.09.29"]
[Round "3.5"]
[White "Garifullina, Leya"]
[Black "Chelushkina, Irina"]
[Result "1-0"]
[ECO "B33"]
[WhiteElo "2438"]
[BlackElo "2167"]
[Annotator "RC"]
[PlyCount "67"]
[EventDate "2024.09.26"]
[EventType "team-tourn"]
[EventCountry "SRB"]
[SourceTitle "playchess.com"]
[Source "ChessBase"]
[SourceQuality "1"]
[TimeControl "40/5400+30:1800+30"]

1. e4 {[%emt 0:00:20]} c5 {[%emt 0:00:12]} 2. Nf3 {[%emt 0:00:08]} Nc6 {[%emt 0:00:14]} 3. d4 {[%emt 0:00:20]} cxd4 {[%emt 0:00:11]} 4. Nxd4 {[%emt 0:00:08]} Nf6 {[%emt 0:00:28]} 5. Nc3 {[%emt 0:00:08]} e5 {[%emt 0:00:04]} 6. Ndb5 {[%emt 0:00:06]} d6 {[%emt 0:00:03]} 7. Nd5 {[%emt 0:00:06]} Nxd5 {[%emt 0:00:08]} 8. exd5 {[%emt 0:00:06]} Nb8 {[%emt 0:02:21]} 9. a4 {[%emt 0:00:22]} Be7 {[%emt 0:04:04]} 10. Be2 {[%emt 0:00:33]} O-O {[%emt 0:00:53]} 11. Bd2 {[%emt 0:00:13]} Nd7 {[%emt 0:01:25]} 12. a5 {[%emt 0:01:17]} a6 {[%emt 0:07:54]} 13. Na3 {[%emt 0:00:07]} Bg5 {[%emt 0:00:00]} 14. Bb4 {[%emt 0:06:31]} b5 {[%emt 0:05:09]} 15. axb6 {[%emt 0:08:09]} Qxb6 {[%emt 0:02:50]} 16. c3 {[%emt 0:00:15]} Nc5 {[%emt 0:04:45]} 17. Nc4 {[%emt 0:00:20]} Qc7 {[%emt 0:00:01]} 18. Nxd6 {[%emt 0:03:52]} Qxd6 {[%emt 0:00:22]} 19. Ra5 {[%emt 0:00:05]} Qd8 {[%emt 0:08:18]} 20. Rxc5 {[%emt 0:00:44]} a5 {[%emt 0:00:04]} 21. Ba3 {[%emt 0:13:27]} Bd7 {[%emt 0:01:38]} 22. O-O {[%emt 0:01:02]} e4 {[%emt 0:05:37]} 23. d6 {[%emt 0:06:08]} Re8 {[%emt 0:04:54]} 24. Rc7 {[%emt 0:02:25]} Bf4 {[%emt 0:00:58]} 25. g3 {[%emt 0:00:58]} Be5 {[%emt 0:01:13]} 26. Qd5 {[%emt 0:01:02]} Rc8 {[%emt 0:01:27]} 27. Bb5 {[%emt 0:01:48]} Bxb5 {[%emt 0:00:44]} 28. Rxf7 {[%emt 0:07:51]} Bxf1 {[%emt 0:05:47]} 29. Rd7+ {[%emt 0:05:30]} Kh8 {[%emt 0:00:43]} 30. Rxd8 {[%emt 0:00:05]} Rcxd8 {[%emt 0:00:06]} 31. Kxf1 {[%emt 0:00:55]} Bf6 {[%emt 0:00:58]} 32. Ke2 {[%emt 0:00:38]} Re5 {[%emt 0:02:23]} 33. Qf7 {[%emt 0:00:25]} h6 {[%emt 0:00:45]} 34. c4 {[%emt 0:00:05]} 1-0

[Event "Serbian League Women 2024"]
[Site "Bajina Basta"]
[Date "2024.09.29"]
[Round "3.6"]
[White "Borisova, Ekaterina"]
[Black "Rakhmangulova, Anastasiya"]
[Result "0-1"]
[ECO "E63"]
[WhiteElo "2205"]
[BlackElo "2283"]
[Annotator "RC"]
[PlyCount "124"]
[EventDate "2024.09.26"]
[EventType "team-tourn"]
[EventCountry "SRB"]
[SourceTitle "playchess.com"]
[Source "ChessBase"]
[SourceQuality "1"]
[TimeControl "40/5400+30:1800+30"]

1. d4 {[%emt 0:00:01]} g6 {[%emt 0:03:09]} 2. c4 {[%emt 0:00:09]} Bg7 {[%emt 0:00:36]} 3. Nf3 {[%emt 0:00:27]} d6 {[%emt 0:03:02]} 4. Nc3 {[%emt 0:00:05]} Nf6 {[%emt 0:07:47]} 5. g3 {[%emt 0:00:10]} O-O {[%emt 0:00:06]} 6. Bg2 {[%emt 0:00:03]} Nc6 {[%emt 0:04:46]} 7. O-O {[%emt 0:00:09]} a6 {[%emt 0:00:07]} 8. b3 {[%emt 0:00:09]} Rb8 {[%emt 0:03:40]} 9. d5 {[%emt 0:00:28]} Na5 {[%emt 0:02:58]} 10. Bg5 {[%emt 0:00:09]} c5 {[%emt 0:02:03]} 11. dxc6 {[%emt 0:00:07]} Nxc6 {[%emt 0:10:32]} 12. Rc1 {[%emt 0:00:41]} Bd7 {[%emt 0:09:30]} 13. Ne1 {[%emt 0:02:55]} Qa5 {[%emt 0:04:34]} 14. Qd2 {[%emt 0:22:02]} Rfc8 {[%emt 0:09:17]} 15. Nd3 {[%emt 0:04:59]} b5 {[%emt 0:01:47]} 16. c5 {[%emt 0:17:40]} dxc5 {[%emt 0:03:19]} 17. Nxc5 {[%emt 0:00:22]} Be8 {[%emt 0:00:45]} 18. Rfd1 {[%emt 0:06:14]} Rd8 {[%emt 0:04:33]} 19. Nd5 {[%emt 0:04:21]} Qxd2 {[%emt 0:00:37]} 20. Nxf6+ {[%emt 0:00:43]} Bxf6 {[%emt 0:02:49]} 21. Bxd2 {[%emt 0:00:05]} Nd4 {[%emt 0:00:33]} 22. Kf1 {[%emt 0:04:21]} b4 {[%emt 0:00:23]} 23. Nxa6 {[%emt 0:07:06]} Nxe2 {[%emt 0:01:12]} 24. Nxb8 {[%emt 0:01:52]} Nxc1 {[%emt 0:01:41]} 25. Rxc1 {[%emt 0:02:06]} Rxb8 {[%emt 0:00:26]} 26. Bxb4 {[%emt 0:05:18]} Rxb4 {[%emt 0:09:11]} 27. Rc8 {[%emt 0:00:03]} h5 {[%emt 0:00:19]} 28. Rxe8+ {[%emt 0:00:35]} Kg7 {[%emt 0:00:06]} 29. Ke2 {[%emt 0:02:47]} h4 {[%emt 0:01:11]} 30. Bd5 {[%emt 0:02:00]} Rd4 {[%emt 0:00:56]} 31. Bc4 {[%emt 0:00:18]} Re4+ {[%emt 0:08:14]} 32. Kf3 {[%emt 0:00:41]} Re1 {[%emt 0:00:25]} 33. Rc8 {[%emt 0:07:20]} Bd4 {[%emt 0:01:55]} 34. a4 {[%emt 0:01:37]} f5 {[%emt 0:00:24]} 35. gxh4 {[%emt 0:03:53]} Re4 {[%emt 0:03:37]} 36. Rc7 {[%emt 0:02:22]} Kf6 {[%emt 0:01:11]} 37. Rc6+ {[%emt 0:01:58]} Kg7 {[%emt 0:00:04]} 38. Rc7 {[%emt 0:00:29]} Rxh4 {[%emt 0:01:00]} 39. Rxe7+ {[%emt 0:00:28]} Kf6 {[%emt 0:00:28]} 40. Rf7+ {[%emt 0:01:10]} Kg5 {[%emt 0:00:20]} 41. Rd7 {[%emt 0:30:33]} Rf4+ {[%emt 0:02:17]} 42. Ke2 {[%emt 0:00:00]} Rxf2+ {[%emt 0:02:18]} 43. Kd3 {[%emt 0:00:00]} Bc5 {[%emt 0:03:53]} 44. Bd5 {[%emt 0:00:00]} Rxh2 {[%emt 0:12:22]} 45. a5 {[%emt 0:00:00]} Rh4 {[%emt 0:02:09]} 46. Bc6 {[%emt 0:00:00]} Kf6 {[%emt 0:09:13]} 47. a6 {[%emt 0:00:00]} g5 {[%emt 0:00:04]} 48. Kc3 {[%emt 0:00:00]} Bb4+ {[%emt 0:00:25]} 49. Kc2 {[%emt 0:00:00]} Bc5 {[%emt 0:01:33]} 50. Rb7 {[%emt 0:00:00]} Rh2+ {[%emt 0:00:47]} 51. Kb1 {[%emt 0:00:00]} g4 {[%emt 0:00:03]} 52. b4 {[%emt 0:00:00]} Bd4 {[%emt 0:00:12]} 53. b5 {[%emt 0:00:50]} Rb2+ {[%emt 0:00:18]} 54. Kc1 {[%emt 0:00:08]} Ra2 {[%emt 0:00:09]} 55. Rd7 {[%emt 0:02:10]} Be3+ {[%emt 0:01:03]} 56. Kb1 {[%emt 0:00:11]} Ra5 {[%emt 0:00:26]} 57. Kc2 {[%emt 0:04:41]} f4 {[%emt 0:00:05]} 58. Kd3 {[%emt 0:00:40]} Ra3+ {[%emt 0:00:11]} 59. Kc4 {[%emt 0:01:15]} f3 {[%emt 0:01:04]} 60. Rd3 {[%emt 0:00:25]} Rxd3 {[%emt 0:01:24]} 61. Kxd3 {[%emt 0:00:04]} Bb6 {[%emt 0:00:14]} 62. Bd7 {[%emt 0:01:28]} g3 {[%emt 0:00:36]} 0-1

[Event "Serbian League Women 2024"]
[Site "Bajina Basta"]
[Date "2024.09.29"]
[Round "3.7"]
[White "Mandura, Tijana"]
[Black "Mihailova, Alina"]
[Result "1-0"]
[ECO "C47"]
[WhiteElo "2207"]
[BlackElo "1969"]
[Annotator "RC"]
[PlyCount "69"]
[EventDate "2024.09.26"]
[EventType "team-tourn"]
[EventCountry "SRB"]
[SourceTitle "playchess.com"]
[Source "ChessBase"]
[SourceQuality "1"]
[TimeControl "40/5400+30:1800+30"]

1. e4 {[%emt 0:00:04]} e5 {[%emt 0:00:08]} 2. Nf3 {[%emt 0:00:04]} Nc6 {[%emt 0:00:06]} 3. Nc3 {[%emt 0:00:07]} Nf6 {[%emt 0:00:09]} 4. d4 {[%emt 0:00:11]} exd4 {[%emt 0:00:12]} 5. Nxd4 {[%emt 0:00:05]} Bb4 {[%emt 0:00:12]} 6. Nxc6 {[%emt 0:00:25]} bxc6 {[%emt 0:00:07]} 7. Bd3 {[%emt 0:00:05]} d5 {[%emt 0:00:17]} 8. exd5 {[%emt 0:00:15]} O-O {[%emt 0:00:15]} 9. O-O {[%emt 0:00:20]} Bg4 {[%emt 0:00:36]} 10. Be2 {[%emt 0:01:35]} Bxe2 {[%emt 0:00:10]} 11. Nxe2 {[%emt 0:00:10]} cxd5 {[%emt 0:00:35]} 12. Nd4 {[%emt 0:01:54]} Qd7 {[%emt 0:03:35]} 13. Qf3 {[%emt 0:03:08]} Rfe8 {[%emt 0:16:49]} 14. Bf4 {[%emt 0:06:29]} Re4 {[%emt 0:12:32]} 15. Rad1 {[%emt 0:01:54]} Rae8 {[%emt 0:02:47]} 16. h3 {[%emt 0:02:57]} c5 {[%emt 0:07:59]} 17. Nb3 {[%emt 0:00:41]} c4 {[%emt 0:00:26]} 18. Nd4 {[%emt 0:06:31]} Bc5 {[%emt 0:00:41]} 19. Be3 {[%emt 0:02:49]} Qb7 {[%emt 0:13:43]} 20. b3 {[%emt 0:01:28]} Qa6 {[%emt 0:04:57]} 21. Nf5 {[%emt 0:10:26]} Bxe3 {[%emt 0:06:41]} 22. fxe3 {[%emt 0:02:03]} Qb6 {[%emt 0:11:20]} 23. Kh1 {[%emt 0:04:07]} Qe6 {[%emt 0:05:03]} 24. Rd2 {[%emt 0:06:03]} Rf8 {[%emt 0:06:28]} 25. Rdf2 {[%emt 0:04:23]} Nd7 {[%emt 0:00:38]} 26. Qg3 {[%emt 0:00:39]} Qg6 {[%emt 0:02:09]} 27. Qc7 {[%emt 0:00:43]} Nf6 {[%emt 0:01:41]} 28. Ne7+ {[%emt 0:04:39]} Rxe7 {[%emt 0:00:05]} 29. Qxe7 {[%emt 0:00:02]} Ne4 {[%emt 0:00:56]} 30. Rxf7 {[%emt 0:04:59]} Ng3+ {[%emt 0:01:46]} 31. Kg1 {[%emt 0:00:22]} Ne2+ {[%emt 0:00:13]} 32. Kh2 {[%emt 0:00:23]} Qxf7 {[%emt 0:00:29]} 33. Rxf7 {[%emt 0:00:07]} Rxf7 {[%emt 0:00:04]} 34. Qd8+ {[%emt 0:00:07]} Rf8 {[%emt 0:00:02]} 35. Qxd5+ {[%emt 0:00:10]} 1-0